fUSD/lending_fUSD_20260702
["ID","MTS","AMOUNT","RATE_DAILY","PERIOD"]
[426897236,1782994231000,-190.82,0.00017891,2]
[426897264,1782994231000,-999.99,0.00019339,2]
[426897260,1782994231000,-9396.11,0.00019339,2]
[426897262,1782994231000,-9999.99,0.00019339,2]
[426897258,1782994231000,-150.0,0.00019339,2]
[426897270,1782994231000,-299.99,0.00019339,7]
[426897255,1782994231000,-3682.06698249,0.00019264,2]
[426897268,1782994231000,-9999.99,0.00019339,2]
[426897256,1782994231000,-1589.0,0.0001927,2]
[426897249,1782994231000,-2438.34,0.00018843,2]
[426897244,1782994231000,-14067.66,0.00018587,2]
[426897251,1782994231000,-200.0,0.00019018,2]
[426897266,1782994231000,-378.11,0.00019339,2]
[426897239,1782994231000,-2529.13,0.00018155,2]
[426897248,1782994231000,-1858.03828879,0.00018759,2]
[426897252,1782994231000,-2529.13,0.00019062,2]
[426897246,1782994231000,-580.63,0.00018664,2]
[426897247,1782994231000,-297.01,0.00018712,2]
[426897254,1782994231000,-181.17,0.0001914,2]
[426897253,1782994231000,-151.0,0.00019082,2]
[426897245,1782994231000,-2529.13,0.00018608,2]
[426897243,1782994231000,-363.02851249,0.00018564,2]
[426897240,1782994231000,-200.0,0.00018381,2]
[426897250,1782994231000,-154.0,0.00018993,2]
[426897317,1782994232000,-1358.3674255,0.00019998,2]
[426897311,1782994232000,-1358.3674255,0.00019998,2]
[426897313,1782994232000,-1358.3674255,0.00019998,2]
[426897312,1782994232000,-1358.3674255,0.00019998,2]
[426897310,1782994232000,-1358.3674255,0.00019998,2]
[426897307,1782994232000,-1358.3674255,0.00019998,2]
[426897309,1782994232000,-1358.3674255,0.00019998,2]
[426897314,1782994232000,-1358.3674255,0.00019998,2]
[426897306,1782994232000,-1358.3674255,0.00019998,2]
[426897316,1782994232000,-1358.3674255,0.00019998,2]
[426897315,1782994232000,-1358.3674255,0.00019998,2]
[426897321,1782994232000,-1358.3674255,0.00019998,2]
[426897331,1782994232000,-1358.3674255,0.00019998,2]
[426897319,1782994232000,-1358.3674255,0.00019998,2]
[426897318,1782994232000,-1358.3674255,0.00019998,2]
[426897322,1782994232000,-1358.3674255,0.00019998,2]
[426897320,1782994232000,-1358.3674255,0.00019998,2]
[426897326,1782994232000,-1358.3674255,0.00019998,2]
[426897325,1782994232000,-1358.3674255,0.00019998,2]
[426897324,1782994232000,-1358.3674255,0.00019998,2]
[426897327,1782994232000,-1358.3674255,0.00019998,2]
[426897330,1782994232000,-1358.3674255,0.00019998,2]
[426897329,1782994232000,-1358.3674255,0.00019998,2]
[426897328,1782994232000,-1358.3674255,0.00019998,2]
[426897308,1782994232000,-1358.3674255,0.00019998,2]
[426897323,1782994232000,-1358.3674255,0.00019998,2]
[426897305,1782994232000,-1358.3674255,0.00019998,2]
[426897274,1782994232000,-150.99,0.00019339,2]
[426897303,1782994232000,-1358.3674255,0.00019998,2]
[426897272,1782994232000,-5741.14,0.00019339,2]
[426897333,1782994232000,-1358.3674255,0.00019998,2]
[426897276,1782994232000,-2529.13,0.00019516,2]
[426897277,1782994232000,-506.64,0.00019547,2]
[426897282,1782994232000,-2529.13,0.0001997,2]
[426897280,1782994232000,-417.76932204,0.00019583,2]
[426897292,1782994232000,-1358.3674255,0.00019998,2]
[426897289,1782994232000,-1358.3674255,0.00019998,2]
[426897290,1782994232000,-1358.3674255,0.00019998,2]
[426897285,1782994232000,-1358.3674255,0.00019998,2]
[426897283,1782994232000,-1358.3674255,0.00019998,2]
[426897287,1782994232000,-1358.3674255,0.00019998,2]
[426897286,1782994232000,-1358.3674255,0.00019998,2]
[426897291,1782994232000,-1358.3674255,0.00019998,2]
[426897293,1782994232000,-1358.3674255,0.00019998,2]
[426897288,1782994232000,-1358.3674255,0.00019998,2]
[426897295,1782994232000,-1358.3674255,0.00019998,2]
[426897294,1782994232000,-1358.3674255,0.00019998,2]
[426897298,1782994232000,-1358.3674255,0.00019998,2]
[426897296,1782994232000,-1358.3674255,0.00019998,2]
[426897299,1782994232000,-1358.3674255,0.00019998,2]
[426897302,1782994232000,-1358.3674255,0.00019998,2]
[426897300,1782994232000,-1358.3674255,0.00019998,2]
[426897297,1782994232000,-1358.3674255,0.00019998,2]
[426897301,1782994232000,-1358.3674255,0.00019998,2]
[426897304,1782994232000,-1358.3674255,0.00019998,2]
[426897332,1782994232000,-1358.3674255,0.00019998,2]
[426897385,1782994232000,-500.0,0.00019998,2]
[426897335,1782994232000,-1358.3674255,0.00019998,2]
[426897363,1782994232000,-1324.40823986,0.00019998,2]
[426897369,1782994232000,-1324.40823986,0.00019998,2]
[426897368,1782994232000,-1324.40823986,0.00019998,2]
[426897370,1782994232000,-1324.40823986,0.00019998,2]
[426897365,1782994232000,-1324.40823986,0.00019998,2]
[426897366,1782994232000,-1324.40823986,0.00019998,2]
[426897367,1782994232000,-1324.40823986,0.00019998,2]
[426897372,1782994232000,-1324.4082398,0.00019998,2]
[426897374,1782994232000,-500.0,0.00019998,2]
[426897375,1782994232000,-500.0,0.00019998,2]
[426897378,1782994232000,-500.0,0.00019998,2]
[426897377,1782994232000,-500.0,0.00019998,2]
[426897380,1782994232000,-500.0,0.00019998,2]
[426897379,1782994232000,-500.0,0.00019998,2]
[426897382,1782994232000,-500.0,0.00019998,2]
[426897384,1782994232000,-500.0,0.00019998,2]
[426897381,1782994232000,-500.0,0.00019998,2]
[426897383,1782994232000,-500.0,0.00019998,2]
[426897373,1782994232000,-1324.4082398,0.00019998,2]
[426897386,1782994232000,-500.0,0.00019998,2]
[426897388,1782994232000,-500.0,0.00019998,2]
[426897387,1782994232000,-500.0,0.00019998,2]
[426897390,1782994232000,-500.0,0.00019998,2]
[426897334,1782994232000,-1358.3674255,0.00019998,2]
[426897389,1782994232000,-500.0,0.00019998,2]
[426897371,1782994232000,-1324.40823986,0.00019998,2]
[426897360,1782994232000,-1324.40823986,0.00019998,2]
[426897376,1782994232000,-284.61769231,0.00019998,2]
[426897362,1782994232000,-1324.40823986,0.00019998,2]
[426897337,1782994232000,-1324.40823986,0.00019998,2]
[426897364,1782994232000,-1324.40823986,0.00019998,2]
[426897339,1782994232000,-1324.40823986,0.00019998,2]
[426897338,1782994232000,-1324.40823986,0.00019998,2]
[426897340,1782994232000,-1324.40823986,0.00019998,2]
[426897341,1782994232000,-1324.40823986,0.00019998,2]
[426897342,1782994232000,-1324.40823986,0.00019998,2]
[426897345,1782994232000,-1324.40823986,0.00019998,2]
[426897348,1782994232000,-438.12332679,0.00019998,2]
[426897346,1782994232000,-1324.40823986,0.00019998,2]
[426897347,1782994232000,-1324.40823986,0.00019998,2]
[426897344,1782994232000,-1324.40823986,0.00019998,2]
[426897343,1782994232000,-1324.40823986,0.00019998,2]
[426897336,1782994232000,-1358.3674255,0.00019998,2]
[426897356,1782994232000,-1324.40823986,0.00019998,2]
[426897351,1782994232000,-1324.40823986,0.00019998,2]
[426897358,1782994232000,-1324.40823986,0.00019998,2]
[426897357,1782994232000,-1324.40823986,0.00019998,2]
[426897353,1782994232000,-1324.40823986,0.00019998,2]
[426897355,1782994232000,-1324.40823986,0.00019998,2]
[426897361,1782994232000,-1324.40823986,0.00019998,2]
[426897352,1782994232000,-1324.40823986,0.00019998,2]
[426897359,1782994232000,-1324.40823986,0.00019998,2]
[426897350,1782994232000,-1324.40823986,0.00019998,2]
[426897349,1782994232000,-886.28491307,0.00019998,2]
[426897354,1782994232000,-1324.40823986,0.00019998,2]
[426897429,1782994233000,-4394.2592,0.00020548,2]
[426897423,1782994233000,-35356.35658593,0.00020409,2]
[426897427,1782994233000,-4394.2592,0.00020548,2]
[426897424,1782994233000,-199.5,0.00020516,2]
[426897419,1782994233000,-9999.99,0.00020145,2]
[426897426,1782994233000,-613.9778,0.00020548,2]
[426897428,1782994233000,-4394.2592,0.00020548,2]
[426897420,1782994233000,-9999.99,0.00020145,2]
[426897425,1782994233000,-423.0,0.00020528,2]
[426897433,1782994233000,-4394.2592,0.00020548,2]
[426897421,1782994233000,-181.17,0.00020203,2]
[426897422,1782994233000,-3131.61012967,0.00020409,2]
[426897440,1782994233000,-150.0,0.00020733,2]
[426897437,1782994233000,-150.0,0.0002058,2]
[426897439,1782994233000,-150.0,0.0002058,2]
[426897434,1782994233000,-4421.2823,0.00020548,2]
[426897432,1782994233000,-4394.2592,0.00020548,2]
[426897431,1782994233000,-4394.2592,0.00020548,2]
[426897438,1782994233000,-150.0,0.0002058,2]
[426897436,1782994233000,-150.0,0.0002058,2]
[426897435,1782994233000,-4558.4453,0.00020548,2]
[426897441,1782994233000,-297.01,0.00021051,2]
[426897452,1782994233000,-997.1,0.00022466,2]
[426897442,1782994233000,-165.18,0.0002125,2]
[426897443,1782994233000,-181.17,0.00021267,2]
[426897430,1782994233000,-4394.2592,0.00020548,2]
[426897413,1782994233000,-372.34176263,0.00019998,2]
[426897391,1782994233000,-500.0,0.00019998,2]
[426897417,1782994233000,-437.11407434,0.00020045,2]
[426897444,1782994233000,-1133.21537626,0.00021471,2]
[426897395,1782994233000,-500.0,0.00019998,2]
[426897393,1782994233000,-500.0,0.00019998,2]
[426897392,1782994233000,-500.0,0.00019998,2]
[426897394,1782994233000,-500.0,0.00019998,2]
[426897407,1782994233000,-500.0,0.00019998,2]
[426897397,1782994233000,-500.0,0.00019998,2]
[426897396,1782994233000,-500.0,0.00019998,2]
[426897398,1782994233000,-500.0,0.00019998,2]
[426897401,1782994233000,-500.0,0.00019998,2]
[426897406,1782994233000,-500.0,0.00019998,2]
[426897404,1782994233000,-500.0,0.00019998,2]
[426897402,1782994233000,-500.0,0.00019998,2]
[426897400,1782994233000,-500.0,0.00019998,2]
[426897403,1782994233000,-500.0,0.00019998,2]
[426897399,1782994233000,-500.0,0.00019998,2]
[426897405,1782994233000,-285.456554,0.00019998,2]
[426897418,1782994233000,-165.18,0.00020142,2]
[426897408,1782994233000,-500.0,0.00019998,2]
[426897414,1782994233000,-159.89119307,0.00019998,2]
[426897410,1782994233000,-500.0,0.00019998,2]
[426897409,1782994233000,-500.0,0.00019998,2]
[426897412,1782994233000,-500.0,0.00019998,2]
[426897411,1782994233000,-500.0,0.00019998,2]
[426897416,1782994233000,-1133.21537633,0.00020042,2]
[426897415,1782994233000,-17433.32832484,0.00019999,2]
[426897450,1782994233000,-181.17,0.0002233,2]
[426897500,1782994233000,-154.0,0.00024,2]
[426897445,1782994233000,-437.11407432,0.00021881,2]
[426897479,1782994233000,-4846.55613374,0.00023,2]
[426897483,1782994233000,-181.17,0.00023393,2]
[426897481,1782994233000,-4846.55613374,0.00023333,2]
[426897486,1782994233000,-437.11407432,0.00023718,2]
[426897485,1782994233000,-4846.55613374,0.00023667,2]
[426897480,1782994233000,-1806.87214507,0.00023049,2]
[426897484,1782994233000,-165.18,0.00023466,2]
[426897482,1782994233000,-297.01,0.0002339,2]
[426897487,1782994233000,-191.258687,0.00023847,14]
[426897488,1782994233000,-500.0,0.00023863,2]
[426897489,1782994233000,-4846.55613374,0.00024,2]
[426897490,1782994233000,-155.0,0.00024,2]
[426897498,1782994233000,-263.0,0.00024,2]
[426897491,1782994233000,-156.0,0.00024,2]
[426897495,1782994233000,-154.0,0.00024,2]
[426897497,1782994233000,-158.0,0.00024,2]
[426897494,1782994233000,-164.0,0.00024,2]
[426897493,1782994233000,-251.0,0.00024,2]
[426897496,1782994233000,-172.0,0.00024,2]
[426897499,1782994233000,-150.0,0.00024,2]
[426897504,1782994233000,-1806.87214507,0.0002428,2]
[426897503,1782994233000,-420.48477534,0.00024221,2]
[426897502,1782994233000,-13010.67,0.00024174,2]
[426897501,1782994233000,-8903.53,0.00024174,2]
[426897451,1782994233000,-165.18,0.00022358,2]
[426897478,1782994233000,-150.0,0.00022952,2]
[426897476,1782994233000,-1133.21537626,0.00022899,2]
[426897492,1782994233000,-220.0,0.00024,2]
[426897475,1782994233000,-3423.5367119,0.00022885,2]
[426897446,1782994233000,-500.0,0.00021916,2]
[426897477,1782994233000,-3728.81,0.00022952,2]
[426897448,1782994233000,-5000.0,0.00021918,2]
[426897449,1782994233000,-943.19478375,0.00021918,2]
[426897447,1782994233000,-500.0,0.00021916,2]
[426897463,1782994233000,-151.0,0.00022717,2]
[426897462,1782994233000,-151.0,0.00022717,2]
[426897454,1782994233000,-3442.44,0.00022684,2]
[426897453,1782994233000,-454.65097633,0.00022617,2]
[426897456,1782994233000,-151.0,0.00022717,2]
[426897460,1782994233000,-151.0,0.00022717,2]
[426897458,1782994233000,-151.0,0.00022717,2]
[426897457,1782994233000,-151.0,0.00022717,2]
[426897455,1782994233000,-151.0,0.00022717,2]
[426897474,1782994233000,-3411.2833388,0.00022885,2]
[426897473,1782994233000,-282.04786215,0.00022884,2]
[426897459,1782994233000,-151.0,0.00022717,2]
[426897472,1782994233000,-500.0,0.00022884,2]
[426897468,1782994233000,-200.8224883,0.00022717,2]
[426897469,1782994233000,-312.85327024,0.00022884,2]
[426897465,1782994233000,-151.0,0.00022717,2]
[426897470,1782994233000,-500.0,0.00022884,2]
[426897471,1782994233000,-500.0,0.00022884,2]
[426897467,1782994233000,-151.0,0.00022717,2]
[426897464,1782994233000,-151.0,0.00022717,2]
[426897461,1782994233000,-151.0,0.00022717,2]
[426897466,1782994233000,-151.0,0.00022717,2]
[426897536,1782994234000,-220.0,0.00025,2]
[426897546,1782994234000,-289.4264123,0.00025599,2]
[426897539,1782994234000,-172.0,0.00025,2]
[426897544,1782994234000,-249.0,0.00025516,2]
[426897537,1782994234000,-251.0,0.00025,2]
[426897540,1782994234000,-263.0,0.00025,2]
[426897545,1782994234000,-181.17,0.0002552,2]
[426897543,1782994234000,-1806.87214507,0.00025512,2]
[426897542,1782994234000,-4846.55613374,0.00025333,2]
[426897538,1782994234000,-154.0,0.00025,2]
[426897548,1782994234000,-500.0,0.000256,2]
[426897541,1782994234000,-162.0,0.00025,2]
[426897547,1782994234000,-184.35463506,0.00025599,2]
[426897567,1782994234000,-172.0,0.00026,2]
[426897549,1782994234000,-173.30106056,0.00025604,2]
[426897552,1782994234000,-206.31445506,0.00025628,2]
[426897551,1782994234000,-596.43913978,0.00025628,2]
[426897553,1782994234000,-173.30864194,0.00025628,2]
[426897557,1782994234000,-321.89873254,0.00025628,2]
[426897555,1782994234000,-270.83178062,0.00025628,2]
[426897556,1782994234000,-256.19297187,0.00025628,2]
[426897554,1782994234000,-185.80004082,0.00025628,2]
[426897558,1782994234000,-4846.55613374,0.00025667,2]
[426897564,1782994234000,-220.0,0.00026,2]
[426897559,1782994234000,-297.01,0.00025729,2]
[426897535,1782994234000,-574.13,0.00025,2]
[426897550,1782994234000,-161.56383169,0.00025615,2]
[426897534,1782994234000,-861.7,0.00025,2]
[426897509,1782994234000,-169.52,0.00024658,2]
[426897529,1782994234000,-8999.05,0.00025,2]
[426897510,1782994234000,-1000.0,0.00024658,2]
[426897505,1782994234000,-1133.21537626,0.00024328,2]
[426897508,1782994234000,-1000.0,0.00024657,2]
[426897507,1782994234000,-181.17,0.00024457,2]
[426897506,1782994234000,-4846.55613374,0.00024333,2]
[426897511,1782994234000,-186.03,0.00024658,2]
[426897513,1782994234000,-190.76,0.00024658,2]
[426897514,1782994234000,-4846.55613374,0.00024667,2]
[426897515,1782994234000,-288.31300057,0.00024671,2]
[426897516,1782994234000,-677.91438033,0.00024683,2]
[426897521,1782994234000,-1906.9,0.00025,2]
[426897518,1782994234000,-155.9931201,0.000249,7]
[426897528,1782994234000,-20999.12,0.00025,2]
[426897520,1782994234000,-4846.55613374,0.00025,2]
[426897519,1782994234000,-151.68841509,0.00024967,2]
[426897512,1782994234000,-186.02,0.00024658,2]
[426897522,1782994234000,-816.67,0.00025,2]
[426897531,1782994234000,-168.54893274,0.00025,2]
[426897533,1782994234000,-2011.96,0.00025,2]
[426897532,1782994234000,-165.0,0.00025,2]
[426897526,1782994234000,-371.39811547,0.00025,2]
[426897524,1782994234000,-1906.9,0.00025,2]
[426897523,1782994234000,-544.11,0.00025,2]
[426897525,1782994234000,-445.27188453,0.00025,2]
[426897527,1782994234000,-544.11,0.00025,2]
[426897530,1782994234000,-5999.04,0.00025,2]
[426897517,1782994234000,-160.94936627,0.00024792,2]
[426897563,1782994234000,-4846.55613374,0.00026,2]
[426897561,1782994234000,-38487.9667156,0.00025969,2]
[426897566,1782994234000,-168.96845676,0.00026,2]
[426897600,1782994234000,-208.56881286,0.00026185,2]
[426897603,1782994234000,-371.60008163,0.00026185,2]
[426897601,1782994234000,-412.62891012,0.00026185,2]
[426897599,1782994234000,-205.10782761,0.00026185,2]
[426897604,1782994234000,-541.66356124,0.00026185,2]
[426897598,1782994234000,-195.56631844,0.00026185,2]
[426897597,1782994234000,-358.66818964,0.00026185,2]
[426897602,1782994234000,-231.75465955,0.00026185,2]
[426897614,1782994234000,-500.0,0.00026589,2]
[426897615,1782994234000,-1790.0,0.00026591,2]
[426897605,1782994234000,-512.38594373,0.00026185,2]
[426897616,1782994234000,-1817.0,0.00026591,2]
[426897593,1782994234000,-317.62893442,0.00026185,2]
[426897617,1782994234000,-1806.87214507,0.00026743,2]
[426897607,1782994234000,-482.84809881,0.00026185,2]
[426897609,1782994234000,-259.0,0.00026521,2]
[426897612,1782994234000,-500.0,0.00026589,2]
[426897606,1782994234000,-330.02320871,0.00026185,2]
[426897610,1782994234000,-181.17,0.00026583,2]
[426897611,1782994234000,-500.0,0.00026589,2]
[426897613,1782994234000,-729.96,0.00026589,2]
[426897619,1782994234000,-1000.0,0.00026798,2]
[426897618,1782994234000,-500.0,0.00026798,2]
[426897560,1782994234000,-1133.21537626,0.00025756,2]
[426897622,1782994234000,-533.95291419,0.00026909,14]
[426897621,1782994234000,-202.33031944,0.00026909,14]
[426897608,1782994234000,-412.0,0.00026486,5]
[426897596,1782994234000,-186.24382501,0.00026185,2]
[426897620,1782994234000,-500.0,0.00026798,2]
[426897594,1782994234000,-176.79186241,0.00026185,2]
[426897595,1782994234000,-365.34344802,0.00026185,2]
[426897565,1782994234000,-251.0,0.00026,2]
[426897568,1782994234000,-263.0,0.00026,2]
[426897569,1782994234000,-406.50788367,0.00026156,2]
[426897571,1782994234000,-318.533376,0.00026156,2]
[426897570,1782994234000,-179.81985592,0.00026156,2]
[426897573,1782994234000,-368.70927012,0.00026156,2]
[426897574,1782994234000,-237.99476169,0.00026161,2]
[426897572,1782994234000,-578.8528246,0.00026156,2]
[426897575,1782994234000,-327.34677605,0.00026161,2]
[426897577,1782994234000,-353.29054109,0.00026161,2]
[426897580,1782994234000,-157.81024348,0.00026161,2]
[426897578,1782994234000,-346.60212113,0.00026161,2]
[426897562,1782994234000,-150.0,0.00025981,5]
[426897579,1782994234000,-380.14964603,0.00026161,2]
[426897576,1782994234000,-211.97610217,0.00026161,2]
[426897586,1782994234000,-155.35587677,0.00026181,2]
[426897584,1782994234000,-323.12766338,0.00026172,2]
[426897592,1782994234000,-167.49131498,0.00026185,2]
[426897582,1782994234000,-346.61728388,0.00026172,2]
[426897583,1782994234000,-388.9420973,0.00026172,2]
[426897589,1782994234000,-170.08994283,0.00026185,2]
[426897587,1782994234000,-172.79529365,0.00026185,2]
[426897581,1782994234000,-360.18773848,0.00026172,2]
[426897585,1782994234000,-182.77901204,0.00026181,2]
[426897590,1782994234000,-186.10549474,0.00026185,2]
[426897591,1782994234000,-298.21956989,0.00026185,2]
[426897588,1782994234000,-177.59022263,0.00026185,2]
[426897651,1782994235000,-500.0,0.00027454,60]
[426897659,1782994235000,-151.68841508,0.00027655,2]
[426897653,1782994235000,-170.32,0.0002755,3]
[426897655,1782994235000,-1353.91116034,0.000276,2]
[426897648,1782994235000,-397.54503996,0.00027402,5]
[426897657,1782994235000,-183.5669226,0.000276,2]
[426897667,1782994235000,-1436.83,0.00028,2]
[426897656,1782994235000,-487.19652116,0.000276,2]
[426897658,1782994235000,-181.17,0.00027647,2]
[426897661,1782994235000,-487.19652116,0.000279,2]
[426897646,1782994235000,-2183.4,0.00027397,10]
[426897664,1782994235000,-1361.79,0.00028,2]
[426897665,1782994235000,-1361.79,0.00028,2]
[426897663,1782994235000,-1806.87214507,0.00027974,2]
[426897660,1782994235000,-1353.91116034,0.000279,2]
[426897666,1782994235000,-14999.09,0.00028,2]
[426897668,1782994235000,-220.0,0.00028,2]
[426897676,1782994235000,-941.9562321,0.00028409,14]
[426897671,1782994235000,-263.0,0.00028,2]
[426897679,1782994235000,-177.68937425,0.00028619,2]
[426897670,1782994235000,-172.0,0.00028,2]
[426897674,1782994235000,-487.19652116,0.000282,2]
[426897650,1782994235000,-500.0,0.00027454,14]
[426897662,1782994235000,-183.5669226,0.000279,2]
[426897647,1782994235000,-260.91896649,0.000274,5]
[426897633,1782994235000,-160.0,0.00027133,2]
[426897654,1782994235000,-170.32,0.0002755,3]
[426897678,1782994235000,-1133.21537626,0.00028613,2]
[426897624,1782994235000,-251.0,0.00027,2]
[426897625,1782994235000,-172.0,0.00027,2]
[426897623,1782994235000,-220.0,0.00027,2]
[426897626,1782994235000,-263.0,0.00027,2]
[426897627,1782994235000,-150.0,0.0002702,5]
[426897628,1782994235000,-1353.91116034,0.000271,2]
[426897629,1782994235000,-487.19652116,0.000271,2]
[426897630,1782994235000,-208.32559247,0.000271,2]
[426897632,1782994235000,-160.0,0.00027133,2]
[426897631,1782994235000,-183.5669226,0.000271,2]
[426897644,1782994235000,-3144.09,0.00027397,10]
[426897634,1782994235000,-508.0,0.00027137,2]
[426897637,1782994235000,-487.19652116,0.000273,2]
[426897643,1782994235000,-160.92987869,0.00027397,5]
[426897638,1782994235000,-208.32559247,0.000273,2]
[426897636,1782994235000,-1353.91116034,0.000273,2]
[426897639,1782994235000,-183.5669226,0.000273,2]
[426897641,1782994235000,-1500.0,0.00027397,2]
[426897640,1782994235000,-317.29,0.00027397,2]
[426897642,1782994235000,-152.0,0.00027397,5]
[426897645,1782994235000,-2620.08,0.00027397,10]
[426897652,1782994235000,-500.0,0.000275,7]
[426897649,1782994235000,-668.0,0.00027411,5]
[426897635,1782994235000,-1133.21537626,0.00027185,2]
[426897675,1782994235000,-1556.6750861,0.00028203,2]
[426897700,1782994235000,-1000.0,0.00028741,2]
[426897677,1782994235000,-1409.11018852,0.00028409,14]
[426897707,1782994235000,-729.96,0.00028741,7]
[426897711,1782994235000,-500.0,0.00028741,7]
[426897706,1782994235000,-729.96,0.00028741,7]
[426897708,1782994235000,-729.96,0.00028741,7]
[426897709,1782994235000,-500.0,0.00028741,7]
[426897710,1782994235000,-500.0,0.00028741,7]
[426897713,1782994235000,-500.0,0.00028741,7]
[426897712,1782994235000,-500.0,0.00028741,7]
[426897714,1782994235000,-636.85,0.00028741,7]
[426897717,1782994235000,-190.34,0.000288,7]
[426897715,1782994235000,-1458906.9704746,0.00028742,2]
[426897718,1782994235000,-295.58,0.000288,7]
[426897721,1782994235000,-1200.0,0.000289,10]
[426897722,1782994235000,-1906.5717,0.00028909,14]
[426897719,1782994235000,-230.1341776,0.000288,7]
[426897720,1782994235000,-800.0,0.000288,10]
[426897725,1782994235000,-508.0,0.0002896,4]
[426897726,1782994235000,-500.0,0.00029,7]
[426897723,1782994235000,-161.62,0.00028937,7]
[426897724,1782994235000,-161.64,0.00028938,7]
[426897728,1782994235000,-227.0,0.00029,2]
[426897727,1782994235000,-374.5,0.00029,7]
[426897673,1782994235000,-1353.91116034,0.000282,2]
[426897704,1782994235000,-729.96,0.00028741,7]
[426897705,1782994235000,-729.96,0.00028741,7]
[426897716,1782994235000,-971.33729287,0.00028769,2]
[426897701,1782994235000,-1000.0,0.00028741,2]
[426897702,1782994235000,-1000.0,0.00028741,2]
[426897672,1782994235000,-500.0,0.00028082,2]
[426897669,1782994235000,-251.0,0.00028,2]
[426897681,1782994235000,-161.64,0.00028639,30]
[426897691,1782994235000,-159.18385844,0.00028739,7]
[426897684,1782994235000,-165.72,0.00028641,30]
[426897680,1782994235000,-161.62,0.00028638,30]
[426897682,1782994235000,-160.57,0.00028639,30]
[426897685,1782994235000,-165.79,0.00028642,30]
[426897688,1782994235000,-400.0,0.000287,10]
[426897690,1782994235000,-55593.0,0.00028712,2]
[426897686,1782994235000,-266.59657662,0.00028669,2]
[426897683,1782994235000,-160.57,0.0002864,30]
[426897689,1782994235000,-181.17,0.0002871,2]
[426897729,1782994235000,-253.0,0.00029,2]
[426897694,1782994235000,-500.0,0.00028741,2]
[426897695,1782994235000,-270.29809241,0.00028741,2]
[426897703,1782994235000,-729.96,0.00028741,7]
[426897697,1782994235000,-1000.0,0.00028741,2]
[426897693,1782994235000,-500.0,0.00028741,5]
[426897699,1782994235000,-1000.0,0.00028741,2]
[426897698,1782994235000,-1000.0,0.00028741,2]
[426897692,1782994235000,-151.0,0.00028739,7]
[426897687,1782994235000,-150.7194063,0.00028669,2]
[426897696,1782994235000,-175.94534121,0.00028741,20]
[426897769,1782994236000,-429.24,0.00029726,2]
[426897770,1782994236000,-211.79580016,0.00029728,2]
[426897774,1782994236000,-8435.23322648,0.00029876,5]
[426897771,1782994236000,-971.33729281,0.00029791,2]
[426897768,1782994236000,-250.0,0.00029696,7]
[426897764,1782994236000,-150.0,0.00029534,2]
[426897765,1782994236000,-161.64,0.00029537,30]
[426897772,1782994236000,-1364.5133355,0.00029803,2]
[426897763,1782994236000,-150.7194063,0.00029515,2]
[426897754,1782994236000,-1500.0,0.00029378,2]
[426897762,1782994236000,-295.58,0.000295,7]
[426897767,1782994236000,-2368.1892939,0.00029652,2]
[426897766,1782994236000,-160.57,0.00029637,2]
[426897783,1782994236000,-732.45374336,0.00030109,2]
[426897786,1782994236000,-500.0,0.00030137,120]
[426897787,1782994236000,-1801.71,0.00030137,7]
[426897777,1782994236000,-500.0,0.00029999,14]
[426897775,1782994236000,-2368.1892939,0.00029926,2]
[426897779,1782994236000,-585.7143991,0.00029999,60]
[426897778,1782994236000,-500.0,0.00029999,60]
[426897785,1782994236000,-201.05,0.00030137,2]
[426897784,1782994236000,-1000.0,0.00030137,120]
[426897780,1782994236000,-1800.0,0.0003,2]
[426897782,1782994236000,-1231.0,0.00030048,2]